bitfinex-derivatives/quotes_SOLF0:USTF0_20241101
["timestamp","ask_amount","ask_price","bid_price","bid_amount"]
[1730453992873,2.9976,166.94,166.9,8.35293875]
[1730453993675,2.9976,166.94,166.9,11.35123875]
[1730453994873,2.9976,166.94,166.9,8.35293875]
[1730453996082,2.9976,166.94,166.92,8.35293875]
[1730454000279,2.9976,166.94,166.9,11.35123875]
[1730454000778,24.08208505,166.94,166.9,11.35123875]
[1730454000979,14.75971078,166.94,166.9,11.35123875]
[1730454001177,11.76211078,166.93,166.9,11.35123875]
[1730454001379,2.9976,166.94,166.9,11.35123875]
[1730454002185,14.75971078,166.94,166.9,11.35123875]
[1730454002372,2.9978,166.93,166.9,11.35123875]
[1730454003086,14.75991078,166.93,166.9,11.35123875]
[1730454003280,11.76211078,166.92,166.9,11.35123875]
[1730454003683,2.9978,166.93,166.9,8.35293875]
[1730454003889,2.9978,166.93,166.88,5.7385]
[1730454003890,2.9982,166.91,166.88,11.09293875]
[1730454004077,8.35293875,166.93,166.88,8.35293875]
[1730454004285,8.35293875,166.91,166.86,8.35293875]
[1730454004989,2.9984,166.9,166.86,8.35293875]
[1730454005779,2.9984,166.9,166.87,8.35293875]
[1730454008589,10.94313875,166.92,166.87,8.35293875]
[1730454008792,2.9987,166.88,166.84,11.35223875]
[1730454009993,8.35293875,166.9,166.85,8.35293875]
[1730454010199,11.35133875,166.9,166.86,2.999]
[1730454012384,2.9987,166.88,166.85,8.35293875]
[1730454012786,8.35293875,166.9,166.85,8.35293875]
[1730454012989,2.9988,166.88,166.85,8.35293875]
[1730454013383,8.35293875,166.9,166.85,8.35293875]
[1730454013583,8.35293875,166.89,166.84,8.35293875]
[1730454014289,2.9988,166.87,166.84,8.35293875]
[1730454015392,2.9991,166.86,166.83,8.35293875]
[1730454015602,8.35293875,166.85,166.79,8.35293875]
[1730454015992,8.35293875,166.86,166.81,8.35293875]
[1730454016502,2.9993,166.85,166.81,8.35293875]
[1730454021009,2.9997,166.83,166.79,8.35293875]
[1730454021202,8.35293875,166.84,166.79,8.35293875]
[1730454021707,3.0,166.81,166.77,14.11353875]
[1730454021910,8.35293875,166.83,166.77,8.35293875]
[1730454022294,8.35293875,166.83,166.77,11.35343875]
[1730454022295,2.9999,166.82,166.77,11.35343875]
[1730454023897,8.35293875,166.83,166.77,11.35343875]
[1730454024097,2.9999,166.81,166.77,11.35343875]
[1730454024299,8.35293875,166.83,166.77,11.35343875]
[1730454025011,2.9998,166.82,166.77,11.35343875]
[1730454025207,8.35293875,166.83,166.77,11.35343875]
[1730454027400,2.9999,166.81,166.77,11.35343875]
[1730454028606,2.9999,166.81,166.77,8.35293875]
[1730454029318,8.35293875,166.83,166.77,8.35293875]
[1730454029506,3.0001,166.8,166.77,8.35293875]
[1730454029903,3.0001,166.8,166.76,11.35373875]
[1730454030903,8.35293875,166.79,166.74,8.35293875]
[1730454031510,3.0006,166.78,166.74,8.35293875]
[1730454032109,3.0006,166.78,166.74,11.35413875]
[1730454035713,8.35293875,166.79,166.75,11.35393875]
[1730454035714,3.0004,166.79,166.75,11.35393875]
[1730454037413,3.0003,166.79,166.75,8.35293875]
[1730454039017,3.0003,166.79,166.75,11.35393875]
[1730454039216,8.35293875,166.81,166.76,8.35293875]
[1730454039408,3.0001,166.8,166.76,8.35293875]
[1730454039609,8.35293875,166.81,166.76,8.35293875]
[1730454041315,11.35293875,166.81,166.77,3.0006]
[1730454042018,8.35293875,166.84,166.8,8.35293875]
[1730454042617,2.9998,166.82,166.78,11.35323875]
[1730454046239,11.35233875,166.84,166.79,8.35293875]
[1730454046924,11.35233875,166.84,166.79,11.35313875]
[1730454048115,11.35233875,166.84,166.8,11.35303875]
[1730454049014,8.35293875,166.84,166.8,11.35303875]
[1730454049219,2.9994,166.85,166.82,8.35293875]
[1730454051423,2.6596,166.86,166.83,8.35293875]
[1730454051620,2.9989,166.87,166.84,8.35293875]
[1730454054220,2.9986,166.89,166.85,8.35293875]
[1730454054821,2.9986,166.89,166.85,11.35213875]
[1730454055025,2.9983,166.9,166.87,8.35293875]
[1730454056127,11.09293875,166.91,166.87,8.35293875]
[1730454056332,11.09293875,166.91,166.85,8.35293875]
[1730454057131,8.35293875,166.89,166.85,8.35293875]
[1730454057325,2.9989,166.87,166.84,8.35293875]
[1730454059028,2.9987,166.88,166.84,8.35293875]
[1730454062125,8.35293875,166.87,166.81,8.35293875]
[1730454062331,8.35293875,166.85,166.81,8.35293875]
[1730454063234,2.9994,166.84,166.81,8.35293875]
[1730454065627,8.35293875,166.85,166.81,8.35293875]
[1730454065834,11.35213875,166.85,166.81,8.35293875]
[1730454066533,2.9994,166.84,166.81,8.35293875]
[1730454066923,8.35293875,166.85,166.79,8.35293875]
[1730454066924,2.9997,166.83,166.79,8.35293875]
[1730454067438,8.35293875,166.85,166.79,8.35293875]
[1730454067633,2.9995,166.84,166.79,11.35303875]
[1730454069027,8.35293875,166.83,166.79,3.0001]
[1730454069237,8.35293875,166.83,166.78,11.35333875]
[1730454069444,8.35293875,166.83,166.78,8.35293875]
[1730454070240,2.9998,166.82,166.78,8.35293875]
[1730454071932,2.9998,166.82,166.78,11.35343875]
[1730454072736,2.9999,166.81,166.77,8.35293875]
[1730454073740,8.35293875,166.82,166.77,8.35293875]
[1730454073941,11.35273875,166.82,166.77,11.35343875]
[1730454078235,2.9998,166.82,166.78,8.35293875]
[1730454080543,2.9996,166.83,166.79,3.0002]
[1730454081039,2.9991,166.86,166.82,8.35293875]
[1730454081243,1.3451,166.87,166.82,8.35293875]
[1730454081434,8.35293875,166.86,166.81,11.35273875]
[1730454081634,2.9993,166.85,166.81,11.35273875]
[1730454086153,2.9993,166.85,166.82,8.35293875]
[1730454095954,2.7114,166.88,166.8,2.7]
[1730454095955,5.7101,166.88,166.85,2.9992]
[1730454096254,11.05293875,166.89,166.85,2.9992]
[1730454096255,8.35293875,166.89,166.85,11.35213875]
[1730454096960,2.9983,166.9,166.86,11.35193875]
[1730454098353,11.35103875,166.92,166.89,8.35293875]
[1730454099150,2.9981,166.91,166.89,8.35293875]
[1730454103059,2.9981,166.91,166.87,11.35173875]
[1730454105169,8.35293875,166.92,166.87,8.35293875]
[1730454105357,14.77109123,166.92,166.88,2.9985]
[1730454105562,2.998,166.92,166.89,8.35293875]
[1730454110260,2.9976,166.94,166.91,8.35293875]
[1730454110458,20.12651297,166.95,166.91,8.35293875]
[1730454110663,11.77357422,166.94,166.91,8.35293875]
[1730454111069,2.9976,166.94,166.91,8.35293875]
[1730454114169,2.9978,166.93,166.91,8.35293875]
[1730454116364,8.35293875,166.95,166.91,8.35293875]
[1730454116561,8.35293875,166.95,166.89,8.35293875]
[1730454117071,8.35293875,166.94,166.89,8.35293875]
[1730454118077,2.9978,166.93,166.89,11.35143875]
[1730454120178,2.9976,166.94,166.9,8.35293875]
[1730454121077,2.9976,166.94,166.9,11.35113875]
[1730454122870,2.998,166.92,166.9,8.35293875]
[1730454123077,2.998,166.92,166.89,8.35293875]
[1730454126477,8.35293875,166.95,166.89,8.35293875]
[1730454126676,2.9978,166.93,166.89,11.35143875]
[1730454127778,8.35293875,166.95,166.89,8.35293875]
[1730454128289,8.35293875,166.95,166.9,8.35293875]
[1730454128880,2.9979,166.93,166.9,8.35293875]
[1730454130491,12.42423875,166.96,166.91,2.998]
[1730454130983,12.42423875,166.96,166.9,8.35293875]
[1730454131292,8.35293875,166.95,166.9,8.35293875]
[1730454131988,2.9979,166.93,166.9,8.35293875]
[1730454133887,2.9981,166.91,166.89,8.35293875]
[1730454139785,2.9978,166.94,166.89,11.35133875]
[1730454140193,2.9978,166.94,166.9,8.35293875]
[1730454140989,2.9978,166.93,166.9,8.35293875]
[1730454151511,2.9978,166.93,166.89,11.35133875]
[1730454153106,8.35293875,166.94,166.89,8.35293875]
[1730454153299,2.9981,166.92,166.89,8.35293875]
[1730454154204,2.9982,166.91,166.87,14.01173875]
[1730454156814,2.9982,166.91,166.88,8.35293875]
[1730454157513,2.9979,166.92,166.88,11.35153875]
[1730454157708,2.9979,166.92,166.9,8.35293875]
[1730454160012,2.9977,166.94,166.9,11.35123875]
[1730454160517,12.42423875,166.96,166.91,8.35293875]
[1730454160905,24.20902006,166.96,166.91,8.35293875]
[1730454161104,12.42423875,166.96,166.91,8.35293875]
[1730454161407,2.9975,166.95,166.91,11.35093875]
[1730454161617,2.6897,166.96,166.92,8.35293875]
[1730454162013,20.14028514,166.97,166.92,8.35293875]
[1730454162323,11.78734639,166.96,166.92,8.35293875]
[1730454163313,2.9973,166.96,166.92,11.35083875]
[1730454164306,14.78464639,166.96,166.92,11.35083875]
[1730454164522,2.9973,166.96,166.92,11.35083875]
[1730454165118,14.79605209,166.96,166.92,11.35083875]
[1730454165316,2.9973,166.96,166.92,11.35083875]
[1730454166215,14.79562267,166.96,166.92,11.35083875]
[1730454166414,2.9973,166.96,166.92,11.35083875]
[1730454167210,14.79529468,166.96,166.92,11.35083875]
[1730454167411,2.9973,166.96,166.92,11.35083875]
[1730454168220,14.79467832,166.96,166.92,11.35083875]
[1730454168421,2.9973,166.96,166.92,11.35083875]
[1730454168623,8.35293875,166.98,166.93,8.35293875]
[1730454168925,2.9972,166.97,166.93,11.35073875]
[1730454169126,14.79554988,166.97,166.93,11.35073875]
[1730454169318,2.9972,166.97,166.93,11.35073875]
[1730454169826,2.9972,166.96,166.93,8.35293875]
[1730454171628,2.9972,166.96,166.92,11.35083875]
[1730454175518,2.9972,166.96,166.93,8.35293875]
[1730454177233,2.9975,166.95,166.92,8.35293875]
[1730454185038,2.9979,166.93,166.9,59.70274066]
[1730454185436,8.35293875,166.94,166.9,51.34980191]
[1730454185637,2.9979,166.93,166.9,51.34980191]
[1730454186636,2.9976,166.94,166.9,62.70104066]
[1730454187842,2.998,166.92,166.9,51.34980191]
[1730454188047,8.35293875,166.93,166.9,51.34980191]
[1730454188341,11.35073875,166.93,166.9,51.34980191]
[1730454188545,2.9978,166.93,166.9,59.70274066]
[1730454188950,2.9978,166.93,166.91,8.35293875]
[1730454189436,2.9976,166.94,166.91,8.35293875]
[1730454191142,8.35293875,166.94,166.9,59.70274066]
[1730454192346,11.35063875,166.94,166.9,59.70274066]
[1730454192841,8.35293875,166.94,166.9,59.70274066]
[1730454193749,2.9977,166.94,166.9,62.70104066]
[1730454194338,11.7940178,166.95,166.91,8.35293875]
[1730454194539,17.4860178,166.96,166.93,8.35293875]
[1730454194841,14.7912178,166.96,166.93,8.35293875]
[1730454195252,2.9972,166.96,166.93,8.35293875]
[1730454195850,11.7940178,166.97,166.94,11.35043875]
[1730454196046,8.35293875,166.98,166.94,8.35293875]
[1730454196250,8.35293875,166.98,166.92,8.35293875]
[1730454196651,29.4921698,166.98,166.92,8.35293875]
[1730454196955,29.4921698,166.98,166.94,8.35293875]
[1730454196956,11.7940178,166.97,166.94,8.35293875]
[1730454197355,8.35293875,166.97,166.92,8.35293875]
[1730454198254,2.9974,166.95,166.92,8.35293875]
[1730454201166,2.9973,166.96,166.92,8.35293875]
[1730454201553,14.78894453,166.96,166.92,8.35293875]
[1730454201755,2.9973,166.96,166.92,8.35293875]
[1730454202467,2.9973,166.96,166.93,8.35293875]
[1730454213757,11.79168971,166.98,166.93,8.35293875]
[1730454213962,2.64,166.99,166.95,8.35293875]
[1730454214574,14.43096977,166.99,166.95,8.35293875]
[1730454214876,2.997,166.98,166.95,8.35293875]
[1730454220567,2.997,166.98,166.96,8.35293875]
[1730454220764,11.7907484,166.98,166.96,8.35293875]
[1730454220961,12.34089072,167.0,166.97,8.35293875]
[1730454221160,24.13163912,167.0,166.97,8.35293875]
[1730454221373,14.7872484,167.0,166.97,8.35293875]
[1730454221570,11.7907484,166.99,166.97,8.35293875]
[1730454221769,2.9967,166.99,166.97,8.35293875]
[1730454222168,21.13378303,167.0,166.97,8.35293875]
[1730454222370,11.7907484,166.99,166.97,8.35293875]
[1730454222775,9.34303463,167.0,166.97,8.35293875]
[1730454223474,12.33953463,167.0,166.97,8.35293875]
[1730454223783,24.13028303,167.0,166.97,8.35293875]
[1730454223974,14.7872484,167.0,166.97,8.35293875]
[1730454224174,2.9965,167.0,166.97,8.35293875]
[1730454224483,12.33960569,167.0,166.97,8.35293875]
[1730454224679,24.13035409,167.0,166.97,8.35293875]
[1730454224877,14.7872484,167.0,166.97,8.35293875]
[1730454225178,2.9965,167.0,166.97,8.35293875]
[1730454226271,11.7904467,167.01,166.99,11.34953875]
[1730454226571,8.35293875,167.05,167.0,8.35293875]
[1730454226572,11.7904467,167.02,167.0,8.35293875]
[1730454226772,8.35293875,167.05,167.0,8.35293875]
[1730454226773,21.13297862,167.04,167.0,8.35293875]
[1730454226971,2.9962,167.02,166.99,8.35293875]
[1730454228389,8.35293875,167.03,166.97,8.35293875]
[1730454228576,21.41778545,167.03,166.97,8.35293875]
[1730454228775,11.7904467,167.02,166.97,8.35293875]
[1730454228984,9.62733875,167.03,166.97,8.35293875]
[1730454229285,12.28733875,167.03,166.97,8.35293875]
[1730454229673,21.6284838,167.03,166.97,8.35293875]
[1730454229873,11.7904467,167.02,166.97,8.35293875]
[1730454230285,2.9966,167.0,166.97,8.35293875]
[1730454232891,9.34080474,167.01,166.96,8.35293875]
[1730454233191,11.01183875,167.0,166.96,8.35293875]
[1730454233395,22.80228545,167.0,166.96,8.35293875]
[1730454233582,11.7904467,166.99,166.96,8.35293875]
[1730454233777,14.7871467,166.99,166.96,8.35293875]
[1730454234394,11.7904467,166.99,166.94,8.35293875]
[1730454234589,11.7904467,166.99,166.93,11.35063875]
[1730454234590,2.9972,166.97,166.93,11.35063875]
[1730454236989,11.7904467,166.98,166.9,51.34980191]
[1730454236990,8.35293875,166.98,166.92,8.35293875]
[1730454237182,8.35293875,166.95,166.9,51.34980191]
[1730454237389,2.9979,166.93,166.9,59.70274066]
[1730454238089,2.9978,166.93,166.9,59.70274066]
[1730454238292,11.7904467,166.94,166.91,8.35293875]
[1730454238494,11.7904467,166.94,166.93,8.35293875]
[1730454238695,11.7904467,166.97,166.94,2.9976]
[1730454238994,18.7860467,166.98,166.94,2.9976]
[1730454239992,18.7860467,166.98,166.94,11.35053875]
[1730454240188,17.4473467,166.98,166.94,11.35053875]
[1730454240501,2.9971,166.97,166.94,11.35053875]
[1730454242102,20.14338545,166.99,166.93,8.35293875]
[1730454242291,8.35293875,166.97,166.93,8.35293875]
[1730454243408,2.9973,166.96,166.93,8.35293875]
[1730454244302,8.35293875,166.97,166.93,8.35293875]
[1730454244508,2.9975,166.95,166.93,8.35293875]
[1730454245005,2.9975,166.95,166.91,11.35103875]
[1730454251813,2.9977,166.94,166.91,8.35293875]
[1730454252312,20.13233251,166.96,166.91,8.35293875]
[1730454252504,2.9979,166.92,166.9,51.34980191]
[1730454252812,8.35293875,166.93,166.9,51.34980191]
[1730454253016,2.9981,166.92,166.9,51.34980191]
[1730454255217,2.9981,166.92,166.9,60.56910425]
[1730454255919,2.9979,166.93,166.9,60.56910425]
[1730454256913,3.938,166.95,166.9,60.56910425]
[1730454257104,2.9979,166.92,166.9,60.56910425]
[1730454257299,2.5789,166.95,166.91,12.21730234]
[1730454257513,5.5763,166.95,166.91,12.21730234]
[1730454261807,2.5789,166.95,166.91,12.21730234]
[1730454262117,2.5789,166.95,166.91,9.21930234]
[1730454262118,2.9976,166.94,166.91,9.21930234]
[1730454263309,9.21930234,166.93,166.9,51.34980191]
[1730454263706,2.9979,166.92,166.9,51.34980191]
[1730454264019,9.21930234,166.93,166.9,51.34980191]
[1730454264726,2.9981,166.92,166.9,51.34980191]
[1730454267910,2.9979,166.93,166.9,51.34980191]
[1730454268209,11.79820234,166.95,166.9,51.34980191]
[1730454268922,2.9979,166.92,166.9,51.34980191]
[1730454272116,11.79820234,166.95,166.9,51.34980191]
[1730454272318,2.9978,166.93,166.89,12.21780234]
[1730454275127,11.79820234,166.95,166.89,12.21780234]
[1730454275128,2.998,166.92,166.89,12.21780234]
[1730454277034,2.9978,166.93,166.89,12.21780234]
[1730454277928,2.998,166.92,166.89,12.21780234]
[1730454279028,2.998,166.92,166.89,9.21930234]
[1730454284241,5.5764,166.95,166.91,12.21740234]
[1730454284449,2.5789,166.95,166.92,9.21930234]
[1730454284924,2.5789,166.95,166.92,12.21710234]
[1730454285423,2.9973,166.96,166.92,12.21710234]
[1730454286237,2.9974,166.95,166.92,12.21710234]
[1730454286937,2.9978,166.93,166.9,9.21930234]
[1730454294535,9.21930234,166.93,166.88,9.21930234]
[1730454294838,2.9981,166.91,166.88,9.21930234]
[1730454296755,2.9982,166.91,166.88,9.21930234]
[1730454301934,12.21800234,166.89,166.85,12.21850234]
[1730454302940,2.9987,166.89,166.86,9.21930234]
[1730454304267,2.9987,166.89,166.86,9.2124577]
[1730454306254,2.9988,166.88,166.84,9.2124577]
[1730454306557,9.2124577,166.89,166.84,9.2124577]
[1730454307347,2.999,166.87,166.84,9.2124577]
[1730454309054,2.999,166.87,166.84,12.2118577]
[1730454310142,2.999,166.86,166.82,9.2124577]
[1730454310344,9.2124577,166.86,166.82,9.2124577]
[1730454310647,9.2124577,166.83,166.8,51.38032253]
[1730454310855,2.9997,166.82,166.8,51.38032253]
[1730454311552,2.9999,166.81,166.8,51.38032253]
[1730454311768,2.9999,166.81,166.76,9.2124577]
[1730454312275,2.9999,166.81,166.76,12.2131577]
[1730454313149,9.2124577,166.82,166.76,12.2131577]
[1730454313358,9.2124577,166.8,166.76,3.0007]
[1730454314152,9.2124577,166.8,166.75,9.2124577]
[1730454314359,9.2124577,166.79,166.74,9.2124577]
[1730454314863,3.0006,166.78,166.74,9.2124577]
[1730454315749,12.22636763,166.78,166.73,12.22696763]
[1730454317166,9.22576763,166.75,166.7,9.22576763]
[1730454318259,11.86576763,166.77,166.72,9.22576763]
[1730454318462,14.86646763,166.77,166.72,12.22726763]
[1730454318851,12.22646763,166.77,166.72,12.22726763]
[1730454319663,3.0008,166.76,166.72,9.22576763]
[1730454319869,9.22576763,166.75,166.71,12.22746763]
[1730454325075,9.22576763,166.73,166.68,9.22576763]
[1730454325461,9.22576763,166.73,166.69,9.22576763]
[1730454325771,9.22576763,166.73,166.69,12.22776763]
[1730454326370,3.0017,166.72,166.68,9.22576763]
[1730454326579,9.22576763,166.73,166.68,9.22576763]
[1730454326981,12.22716763,166.73,166.68,12.22796763]
[1730454330183,12.22716763,166.73,166.69,9.22576763]
[1730454330887,3.0014,166.73,166.69,9.22576763]
[1730454334296,3.0014,166.73,166.69,12.22786763]
[1730454335687,9.22576763,166.71,166.69,3.0021]
[1730454337090,9.22576763,166.7,166.64,9.22576763]
[1730454337276,9.22576763,166.68,166.62,9.22576763]
[1730454338489,9.22576763,166.68,166.64,3.0028]
[1730454341796,9.22576763,166.69,166.65,9.22576763]
[1730454341992,9.22576763,166.7,166.66,9.22576763]
[1730454342591,10.56016763,166.72,166.67,9.22576763]
[1730454343290,12.22716763,166.73,166.68,9.22576763]
[1730454343489,9.22576763,166.73,166.68,9.22576763]
[1730454343989,12.22686763,166.75,166.7,12.22746763]
[1730454344185,9.22576763,166.75,166.7,9.22576763]
[1730454344895,1.3724,166.78,166.72,3.0015]
[1730454345089,9.22576763,166.76,166.72,3.0015]
[1730454346281,12.22656763,166.76,166.72,3.0015]
[1730454347385,3.0012,166.75,166.7,3.0018]
[1730454347584,12.22696763,166.75,166.7,12.22756763]
[1730454357698,3.0014,166.73,166.69,9.22576763]
[1730454357907,9.22576763,166.74,166.69,9.22576763]
[1730454357908,9.22576763,166.72,166.69,9.22576763]
[1730454358802,3.0017,166.72,166.69,9.22576763]
[1730454359197,3.0013,166.74,166.7,9.22576763]
[1730454359404,9.22576763,166.75,166.7,9.22576763]
[1730454359804,12.22686763,166.75,166.7,12.22756763]
[1730454360007,9.22576763,166.75,166.7,12.22756763]
[1730454361304,3.0012,166.74,166.7,12.22756763]
[1730454361716,9.22576763,166.75,166.7,9.22576763]
[1730454361907,12.22676763,166.75,166.71,3.0017]
[1730454364906,12.22666763,166.76,166.72,3.0015]
[1730454365912,12.22666763,166.76,166.7,9.22576763]
[1730454366113,12.22666763,166.76,166.71,3.0017]
[1730454366315,9.22576763,166.75,166.71,3.0017]
[1730454366918,12.22696763,166.75,166.7,12.22766763]
[1730454367121,9.22576763,166.74,166.69,9.22576763]
[1730454367621,12.22706763,166.74,166.69,12.22776763]
[1730454368520,4.0124,166.78,166.7,12.22756763]
[1730454368521,12.22676763,166.75,166.7,12.22756763]
[1730454369420,3.0014,166.74,166.7,9.22576763]
[1730454370121,12.22716763,166.74,166.69,12.22786763]
[1730454370520,12.22716763,166.74,166.69,9.22576763]
[1730454371323,12.22716763,166.74,166.7,3.0019]
[1730454372115,3.0014,166.74,166.7,3.0019]
[1730454372318,12.22686763,166.75,166.7,12.22766763]
[1730454372924,3.0009,166.76,166.72,12.22726763]
[1730454373928,10.59816763,166.78,166.72,9.22576763]
[1730454374130,3.0006,166.77,166.73,12.22706763]
[1730454378229,10.59816763,166.78,166.73,12.22706763]
[1730454378230,10.59816763,166.78,166.74,3.0011]
[1730454378927,4.3486,166.8,166.76,9.22576763]
[1730454379117,9.22576763,166.82,166.77,9.22576763]
[1730454379730,9.22576763,166.82,166.78,3.0004]
[1730454382630,2.9999,166.81,166.77,9.22576763]
[1730454382931,9.22576763,166.8,166.76,3.0008]
[1730454387329,9.22576763,166.8,166.77,3.0006]
[1730454390536,9.22576763,166.82,166.77,12.22636763]
[1730454390838,12.22556763,166.82,166.77,12.22636763]
[1730454393332,2.9998,166.82,166.78,9.22576763]
[1730454396641,9.22576763,166.85,166.8,9.22576763]
[1730454398240,2.9996,166.83,166.8,9.22576763]
[1730454400752,2.9999,166.82,166.78,12.22606763]
[1730454401048,2.9999,166.82,166.78,9.22576763]
[1730454401438,3.0,166.81,166.78,3.0004]
[1730454401951,3.0,166.81,166.77,9.22576763]
[1730454403340,3.0,166.81,166.78,9.22576763]
[1730454403545,9.22576763,166.83,166.78,9.22576763]
[1730454403748,2.9999,166.82,166.78,9.22576763]
[1730454404148,9.22576763,166.84,166.79,9.22576763]
[1730454404354,12.22526763,166.84,166.79,12.22606763]
[1730454405042,2.9997,166.83,166.79,9.22576763]
[1730454407245,12.22546763,166.83,166.78,12.22606763]
[1730454411146,12.22576763,166.81,166.77,12.22636763]
[1730454412755,9.22576763,166.81,166.77,12.22636763]
[1730454413065,3.0002,166.8,166.75,12.22676763]
[1730454413250,9.22576763,166.78,166.72,11.86576763]
[1730454413460,9.22576763,166.76,166.71,9.22576763]
[1730454413653,9.22576763,166.76,166.71,11.86576763]
[1730454414755,12.22646763,166.77,166.72,9.22576763]
[1730454415058,9.22576763,166.77,166.72,9.22576763]
[1730454415254,9.22576763,166.77,166.74,3.0011]
[1730454415753,9.22576763,166.77,166.73,3.0013]
[1730454416753,12.22646763,166.77,166.73,3.0013]
[1730454418254,9.22576763,166.77,166.73,3.0013]
[1730454421764,12.22626763,166.78,166.73,12.22706763]
[1730454424259,12.22626763,166.78,166.73,3.0013]
[1730454426772,9.22576763,166.78,166.73,3.0013]
[1730454426972,3.0007,166.77,166.73,3.0013]
[1730454427173,9.22576763,166.78,166.73,3.0013]
[1730454427375,14.91766763,166.81,166.76,9.22576763]
[1730454427776,11.91766763,166.81,166.76,9.22576763]
[1730454429365,11.91766763,166.81,166.77,3.0006]
[1730454430969,1.2957,166.82,166.79,12.22596763]
[1730454431166,46.20438379,166.95,166.81,9.22576763]
[1730454431167,9.22576763,166.87,166.81,9.22576763]
[1730454431765,2.9991,166.86,166.83,9.22576763]
[1730454431974,9.22576763,166.88,166.83,9.22576763]
[1730454432875,2.9989,166.87,166.83,9.22576763]
[1730454433681,9.22576763,166.87,166.82,12.22536763]
[1730454433879,9.22576763,166.85,166.81,9.22576763]
[1730454434478,9.22576763,166.86,166.81,9.22576763]
[1730454434678,2.9993,166.85,166.82,9.22576763]
[1730454434871,10.61296763,166.87,166.83,9.22576763]
[1730454434872,1.3872,166.87,166.83,9.22576763]
[1730454435264,4.3861,166.87,166.83,9.22576763]
[1730454437467,1.3872,166.87,166.86,9.22576763]
[1730454437674,11.7622342,166.9,166.86,9.22576763]
[1730454437973,14.54166763,166.91,166.86,9.22576763]
[1730454438169,2.9985,166.9,166.86,12.22466763]
[1730454438590,2.9985,166.9,166.87,9.22576763]
[1730454438775,2.9982,166.91,166.87,9.22576763]
[1730454438972,2.9982,166.91,166.89,9.22576763]
[1730454440483,2.9981,166.92,166.89,9.22576763]
[1730454441382,2.9982,166.91,166.89,9.22576763]
[1730454442584,2.9978,166.93,166.89,9.22576763]
[1730454442779,2.9978,166.93,166.9,9.22576763]
[1730454443181,14.75641405,166.93,166.9,9.22576763]
[1730454443374,2.9978,166.93,166.9,9.22576763]
[1730454447077,2.9981,166.91,166.89,9.22576763]
[1730454451175,22.30364379,166.94,166.89,9.22576763]
[1730454451484,14.74017616,166.93,166.9,9.22576763]
[1730454451686,2.9978,166.93,166.9,9.22576763]
[1730454452186,1.3355,166.94,166.9,9.22576763]
[1730454452187,13.07355507,166.94,166.9,9.22576763]
[1730454452385,13.07355507,166.94,166.87,2.72]
[1730454452386,1.3355,166.94,166.92,9.22576763]
[1730454454790,2.9975,166.95,166.92,9.22576763]
[1730454464392,9.22576763,166.97,166.92,9.22576763]
[1730454464694,2.9979,166.93,166.91,9.22576763]
[1730454465689,2.9979,166.92,166.91,9.22576763]
[1730454468404,9.22576763,166.94,166.89,9.22576763]
[1730454468702,2.9982,166.91,166.89,9.22576763]
[1730454470395,11.86736763,166.95,166.9,9.22576763]
[1730454472303,2.998,166.92,166.9,9.22576763]
[1730454474597,11.86736763,166.95,166.9,9.22576763]
[1730454474901,2.9977,166.94,166.9,12.22406763]
[1730454479610,11.86736763,166.95,166.9,12.22406763]
[1730454479611,2.9978,166.93,166.9,12.22406763]
[1730454479913,11.86736763,166.95,166.9,12.22406763]
[1730454480117,9.22576763,166.94,166.89,9.22576763]
[1730454480305,2.9981,166.91,166.89,9.22576763]
[1730454480501,9.22576763,166.93,166.87,9.22576763]
[1730454481509,2.9981,166.92,166.89,9.22576763]
[1730454481698,9.22576763,166.94,166.89,9.22576763]
[1730454481902,9.22576763,166.94,166.9,9.22576763]
[1730454482815,2.9979,166.93,166.9,9.22576763]
[1730454483005,1.3594,166.96,166.91,9.22576763]
[1730454483006,10.58516763,166.96,166.91,9.22576763]
[1730454483399,2.9977,166.94,166.91,9.22576763]
[1730454486202,1.3594,166.96,166.91,9.22576763]
[1730454486403,1.3594,166.96,166.92,9.22576763]
[1730454487317,4.3567,166.96,166.92,12.22366763]
[1730454488707,2.6906,166.99,166.95,9.22576763]
[1730454488912,2.9969,166.98,166.95,9.22576763]
[1730454490910,9.22576763,166.97,166.94,9.22576763]
[1730454491110,9.22576763,166.97,166.93,2.9977]
[1730454491719,12.22296763,166.97,166.93,2.9977]
[1730454497030,12.22296763,166.97,166.92,9.22576763]
[1730454497231,12.22296763,166.97,166.92,12.22366763]
[1730454499026,12.22296763,166.97,166.93,9.22576763]
[1730454500424,2.9974,166.96,166.92,9.22576763]
[1730454500623,9.22576763,166.97,166.92,9.22576763]
[1730454501026,2.9975,166.95,166.91,9.22576763]
[1730454501924,2.9975,166.95,166.91,12.22386763]
[1730454502718,2.9975,166.95,166.92,9.22576763]